[Event "*** Titled Tuesday Blitz"]
[Site "Chess.com"]
[Date "2021.03.02"]
[Round "10"]
[White "skoularikii"]
[Black "FlySooHigh"]
[Result "1-0"]
[WhiteElo "2560"]
[BlackElo "2684"]
[TimeControl "180+1"]
[EndTime "12:01:45 PST"]
[Termination "skoularikii won on time"]

1. e4 {[%clk 0:02:31.1]} 1... c5 {[%clk 0:02:59.1]} 2. Nf3 {[%clk 0:02:29.2]}
2... d6 {[%clk 0:02:59.1]} 3. Bb5+ {[%clk 0:02:28.5]} 3... Nd7 {[%clk
0:02:58.6]} 4. c3 {[%clk 0:02:28]} 4... a6 {[%clk 0:02:58.4]} 5. Ba4 {[%clk
0:02:27.9]} 5... b5 {[%clk 0:02:57.8]} 6. Bc2 {[%clk 0:02:28.2]} 6... Ngf6
{[%clk 0:02:57.5]} 7. O-O {[%clk 0:02:28.8]} 7... Bb7 {[%clk 0:02:58]} 8. Qe2
{[%clk 0:02:27.2]} 8... e5 {[%clk 0:02:57.5]} 9. d4 {[%clk 0:02:27.1]} 9... Be7
{[%clk 0:02:57.1]} 10. Rd1 {[%clk 0:02:27]} 10... Qc7 {[%clk 0:02:56.9]} 11. d5
{[%clk 0:02:27.5]} 11... O-O {[%clk 0:02:55.7]} 12. a4 {[%clk 0:02:24.9]} 12...
c4 {[%clk 0:02:23.3]} 13. Na3 {[%clk 0:02:24.6]} 13... Qa5 {[%clk 0:02:18.1]}
14. Bg5 {[%clk 0:02:15.6]} 14... Nc5 {[%clk 0:02:15.6]} 15. axb5 {[%clk
0:01:38.4]} 15... axb5 {[%clk 0:02:15]} 16. Rab1 {[%clk 0:01:38.7]} 16... Ba6
{[%clk 0:02:06.6]} 17. Qe3 {[%clk 0:01:35.4]} 17... b4 {[%clk 0:02:03.8]} 18.
cxb4 {[%clk 0:01:34]} 18... Qxb4 {[%clk 0:02:04.7]} 19. Bxf6 {[%clk 0:01:31.5]}
19... Bxf6 {[%clk 0:02:03.2]} 20. Nd2 {[%clk 0:01:31.8]} 20... Rfc8 {[%clk
0:01:55.6]} 21. Qc3 {[%clk 0:01:30.2]} 21... Rab8 {[%clk 0:01:51.5]} 22. Naxc4
{[%clk 0:01:19.2]} 22... Bxc4 {[%clk 0:01:36.9]} 23. Nxc4 {[%clk 0:01:18.2]}
23... Nxe4 {[%clk 0:01:33.9]} 24. Qxb4 {[%clk 0:00:39.5]} 24... Rxb4 {[%clk
0:01:34.8]} 25. Bxe4 {[%clk 0:00:37.2]} 25... Rcxc4 {[%clk 0:01:33.7]} 26. Bd3
{[%clk 0:00:23.5]} 26... Rc5 {[%clk 0:01:29]} 27. Be2 {[%clk 0:00:23]} 27... Bd8
{[%clk 0:01:23.4]} 28. b3 {[%clk 0:00:23.2]} 28... g6 {[%clk 0:01:20.6]} 29. Bc4
{[%clk 0:00:23.1]} 29... Bb6 {[%clk 0:01:16.5]} 30. Ra1 {[%clk 0:00:23.2]} 30...
Rc7 {[%clk 0:01:10.1]} 31. Ra6 {[%clk 0:00:22.6]} 31... Bc5 {[%clk 0:01:10]} 32.
Rda1 {[%clk 0:00:20.7]} 32... Rbb7 {[%clk 0:00:58.3]} 33. Ra8+ {[%clk
0:00:17.8]} 33... Kg7 {[%clk 0:00:58.5]} 34. R1a6 {[%clk 0:00:17.3]} 34... e4
{[%clk 0:00:48.6]} 35. g3 {[%clk 0:00:17.2]} 35... f5 {[%clk 0:00:48.5]} 36. Rc6
{[%clk 0:00:15.6]} 36... Kf6 {[%clk 0:00:47.1]} 37. Rf8+ {[%clk 0:00:12.1]}
37... Ke5 {[%clk 0:00:46]} 38. Re8+ {[%clk 0:00:12]} 38... Kd4 {[%clk
0:00:46.2]} 39. Kg2 {[%clk 0:00:12.2]} 39... Kc3 {[%clk 0:00:43.5]} 40. h4
{[%clk 0:00:11.1]} 40... Ra7 {[%clk 0:00:41.6]} 41. Rxc7 {[%clk 0:00:08]} 41...
Rxc7 {[%clk 0:00:41.4]} 42. Ra8 {[%clk 0:00:08.6]} 42... Re7 {[%clk 0:00:27.9]}
43. Ra2 {[%clk 0:00:08]} 43... h6 {[%clk 0:00:24.9]} 44. Kf1 {[%clk 0:00:06.9]}
44... g5 {[%clk 0:00:24.7]} 45. hxg5 {[%clk 0:00:07.3]} 45... hxg5 {[%clk
0:00:25.6]} 46. Kg2 {[%clk 0:00:08.1]} 46... Rh7 {[%clk 0:00:24.9]} 47. Ra1
{[%clk 0:00:06.9]} 47... f4 {[%clk 0:00:22.6]} 48. Re1 {[%clk 0:00:03.7]} 48...
Kd4 {[%clk 0:00:18.4]} 49. g4 {[%clk 0:00:02.7]} 49... Ke5 {[%clk 0:00:16.3]}
50. f3 {[%clk 0:00:02.6]} 50... Be3 {[%clk 0:00:14.5]} 51. Ra1 {[%clk
0:00:02.7]} 51... exf3+ {[%clk 0:00:12.8]} 52. Kxf3 {[%clk 0:00:03.6]} 52...
Rh3+ {[%clk 0:00:13]} 53. Ke2 {[%clk 0:00:04.5]} 53... Rh2+ {[%clk 0:00:12.7]}
54. Kd3 {[%clk 0:00:04.3]} 54... Rd2+ {[%clk 0:00:12.5]} 55. Kc3 {[%clk
0:00:04.9]} 55... Rg2 {[%clk 0:00:13.1]} 56. Ra8 {[%clk 0:00:05.3]} 56... Rxg4
{[%clk 0:00:12.4]} 57. Re8+ {[%clk 0:00:06.2]} 57... Kf6 {[%clk 0:00:10.8]} 58.
Bd3 {[%clk 0:00:06.6]} 58... Bc5 {[%clk 0:00:09.1]} 59. Re6+ {[%clk 0:00:06.9]}
59... Kf7 {[%clk 0:00:09.1]} 60. Kc4 {[%clk 0:00:07]} 60... f3+ {[%clk
0:00:09.1]} 61. Kc3 {[%clk 0:00:05.7]} 61... Bb4+ {[%clk 0:00:08.4]} 62. Kc2
{[%clk 0:00:05.3]} 62... Rf4 {[%clk 0:00:09.3]} 63. Bf1 {[%clk 0:00:05.3]} 63...
g4 {[%clk 0:00:09.2]} 64. Kd3 {[%clk 0:00:05.7]} 64... Bc5 {[%clk 0:00:05.1]}
65. Re4 {[%clk 0:00:05.2]} 65... Rf5 {[%clk 0:00:04.3]} 66. Rxg4 {[%clk
0:00:05.2]} 66... Rxd5+ {[%clk 0:00:04]} 67. Ke4 {[%clk 0:00:05.7]} 67... Rd1
{[%clk 0:00:03]} 68. Bc4+ {[%clk 0:00:06]} 68... Kf6 {[%clk 0:00:01.6]} 69. Kxf3
{[%clk 0:00:06.1]} 69... Ke5 {[%clk 0:00:01.4]} 70. Re4+ {[%clk 0:00:06.1]}
70... Kf6 {[%clk 0:00:01.7]} 71. Re6+ {[%clk 0:00:06.5]} 71... Kg7 {[%clk
0:00:01.5]} 72. Ke4 {[%clk 0:00:07.4]} 72... Rd4+ {[%clk 0:00:01.9]} 73. Kf5
{[%clk 0:00:07.6]} 73... Rh4 {[%clk 0:00:02.5]} 74. Re7+ {[%clk 0:00:08]} 74...
Kf8 {[%clk 0:00:02.5]} 75. Rf7+ {[%clk 0:00:08.3]} 75... Ke8 {[%clk 0:00:03.4]}
76. Rb7 {[%clk 0:00:08.1]} 76... Kd8 {[%clk 0:00:03.5]} 77. Ke6 {[%clk
0:00:08.1]} 77... Kc8 {[%clk 0:00:03.5]} 78. Rg7 {[%clk 0:00:07.4]} 78... Rh6+
{[%clk 0:00:04]} 79. Kd5 {[%clk 0:00:07.6]} 79... Kb8 {[%clk 0:00:03.8]} 80. Kc6
{[%clk 0:00:08]} 80... Rh8 {[%clk 0:00:04]} 81. Rb7+ {[%clk 0:00:07.6]} 81...
Kc8 {[%clk 0:00:03.9]} 82. Be6+ {[%clk 0:00:06.1]} 82... Kd8 {[%clk 0:00:03.6]}
83. Rb8+ {[%clk 0:00:06.6]} 83... Ke7 {[%clk 0:00:04.3]} 84. Rxh8 {[%clk
0:00:07.1]} 84... Kxe6 {[%clk 0:00:05]} 85. Rh5 {[%clk 0:00:07.1]} 85... Ba3
{[%clk 0:00:03.7]} 86. Ra5 {[%clk 0:00:01.7]} 86... Bb4 {[%clk 0:00:03.7]} 87.
Rb5 {[%clk 0:00:02.1]} 87... Ba3 {[%clk 0:00:03.9]} 88. Ra5 {[%clk 0:00:01.7]}
88... Bb4 {[%clk 0:00:04.2]} 89. Ra4 {[%clk 0:00:02.2]} 89... Bc5 {[%clk
0:00:04.1]} 90. Rc4 {[%clk 0:00:02.8]} 90... Ba3 {[%clk 0:00:04]} 91. Rc2 {[%clk
0:00:02.8]} 91... Ke5 {[%clk 0:00:03.1]} 92. Kb5 {[%clk 0:00:02.4]} 92... Kd4
{[%clk 0:00:02.7]} 93. Ka4 {[%clk 0:00:02.9]} 93... Bc5 {[%clk 0:00:02.4]} 94.
Rc4+ {[%clk 0:00:03.8]} 94... Kd5 {[%clk 0:00:02.6]} 95. Kb5 {[%clk 0:00:04.3]}
95... Be3 {[%clk 0:00:02]} 96. b4 {[%clk 0:00:05.2]} 96... Ke5 {[%clk
0:00:01.9]} 97. Rc8 {[%clk 0:00:05.4]} 97... d5 {[%clk 0:00:02.4]} 98. Re8+
{[%clk 0:00:04.5]} 98... Kd4 {[%clk 0:00:02.8]} 99. Kc6 {[%clk 0:00:05]} 99...
Bf4 {[%clk 0:00:02.8]} 100. b5 {[%clk 0:00:05.9]} 100... Kc4 {[%clk 0:00:02.8]}
101. Rf8 {[%clk 0:00:04.9]} 101... Be5 {[%clk 0:00:02.4]} 102. b6 {[%clk
0:00:05.1]} 102... d4 {[%clk 0:00:02.7]} 103. Rf5 {[%clk 0:00:05.4]} 103... Bg3
{[%clk 0:00:02.7]} 104. Rc5+ {[%clk 0:00:04.8]} 104... Kb4 {[%clk 0:00:02.7]}
105. b7 {[%clk 0:00:04.8]} 105... d3 {[%clk 0:00:02.6]} 106. Rg5 {[%clk
0:00:04.8]} 106... Bh2 {[%clk 0:00:02]} 107. Rg2 {[%clk 0:00:04.8]} 107... Be5
{[%clk 0:00:01.9]} 108. Kd5 {[%clk 0:00:05]} 108... Bb8 {[%clk 0:00:01.6]} 109.
Ke4 {[%clk 0:00:05.5]} 1-0

[Event "*** Titled Tuesday Blitz"]
[Site "Chess.com"]
[Date "2021.03.02"]
[Round "11"]
[White "GigaQuparadze"]
[Black "Gahan-MG"]
[Result "1-0"]
[WhiteElo "2949"]
[BlackElo "2654"]
[TimeControl "180+1"]
[EndTime "12:04:28 PST"]
[Termination "GigaQuparadze won by resignation"]

1. e4 {[%clk 0:03:00.9]} 1... c5 {[%clk 0:02:59.3]} 2. Ne2 {[%clk 0:03:00.7]}
2... d6 {[%clk 0:02:58.8]} 3. g3 {[%clk 0:02:59.9]} 3... Nf6 {[%clk 0:02:58.7]}
4. Bg2 {[%clk 0:03:00.3]} 4... g6 {[%clk 0:02:58.4]} 5. c3 {[%clk 0:03:00.7]}
5... Bg7 {[%clk 0:02:55.4]} 6. d4 {[%clk 0:03:01]} 6... cxd4 {[%clk 0:02:53.5]}
7. cxd4 {[%clk 0:03:01.9]} 7... O-O {[%clk 0:02:53.6]} 8. Nbc3 {[%clk
0:03:02.4]} 8... h5 {[%clk 0:02:43.1]} 9. h3 {[%clk 0:03:00.9]} 9... Nc6 {[%clk
0:02:40.4]} 10. Be3 {[%clk 0:02:58.8]} 10... e6 {[%clk 0:02:29.1]} 11. Qd2
{[%clk 0:02:55.7]} 11... Na5 {[%clk 0:02:24.3]} 12. b3 {[%clk 0:02:55.3]} 12...
d5 {[%clk 0:02:22.2]} 13. e5 {[%clk 0:02:55.2]} 13... Ne8 {[%clk 0:02:20.6]} 14.
g4 {[%clk 0:02:55.6]} 14... hxg4 {[%clk 0:02:09.7]} 15. hxg4 {[%clk 0:02:56.5]}
15... f5 {[%clk 0:02:09.3]} 16. Nf4 {[%clk 0:02:52.5]} 16... Kf7 {[%clk
0:02:05.8]} 17. gxf5 {[%clk 0:02:51.1]} 17... gxf5 {[%clk 0:02:03]} 18. Ncxd5
{[%clk 0:02:49.5]} 18... exd5 {[%clk 0:02:00.7]} 19. Bxd5+ {[%clk 0:02:50.4]}
19... Ke7 {[%clk 0:02:00.5]} 20. Qb4+ {[%clk 0:02:45.9]} 20... Kd7 {[%clk
0:01:58.7]} 21. e6+ {[%clk 0:02:45.9]} 21... Kc7 {[%clk 0:01:57.5]} 22. e7
{[%clk 0:02:46.2]} 22... Qd6 {[%clk 0:01:55.8]} 23. Qxa5+ {[%clk 0:02:45]} 23...
b6 {[%clk 0:01:53.5]} 24. Qc3+ {[%clk 0:02:44.2]} 1-0

[Event "*** Titled Tuesday Blitz"]
[Site "Chess.com"]
[Date "2021.03.02"]
[Round "11"]
[White "Konavets"]
[Black "elohunter1999"]
[Result "1-0"]
[WhiteElo "2932"]
[BlackElo "2650"]
[TimeControl "180+1"]
[EndTime "12:04:42 PST"]
[Termination "Konavets won by resignation"]

1. d4 {[%clk 0:03:00.9]} 1... Nf6 {[%clk 0:02:58.7]} 2. c4 {[%clk 0:02:56.2]}
2... e6 {[%clk 0:02:56.8]} 3. Nf3 {[%clk 0:02:56.1]} 3... Bb4+ {[%clk
0:02:53.2]} 4. Bd2 {[%clk 0:02:55.6]} 4... Qe7 {[%clk 0:02:50.3]} 5. e3 {[%clk
0:02:54.9]} 5... b6 {[%clk 0:02:47.7]} 6. Bd3 {[%clk 0:02:54.7]} 6... Bb7 {[%clk
0:02:47.3]} 7. O-O {[%clk 0:02:54.7]} 7... Bxd2 {[%clk 0:02:46.8]} 8. Nbxd2
{[%clk 0:02:54.2]} 8... d6 {[%clk 0:02:45.3]} 9. e4 {[%clk 0:02:54.2]} 9... e5
{[%clk 0:02:43.4]} 10. d5 {[%clk 0:02:53.7]} 10... a5 {[%clk 0:02:42.8]} 11. Re1
{[%clk 0:02:53.2]} 11... Na6 {[%clk 0:02:41.7]} 12. Nf1 {[%clk 0:02:53.3]} 12...
Nc5 {[%clk 0:02:40.3]} 13. b3 {[%clk 0:02:52.5]} 13... Bc8 {[%clk 0:02:39.3]}
14. Bc2 {[%clk 0:02:48.1]} 14... Bg4 {[%clk 0:02:36.1]} 15. h3 {[%clk
0:02:46.3]} 15... Bd7 {[%clk 0:02:25.7]} 16. a3 {[%clk 0:02:46]} 16... O-O
{[%clk 0:02:21.1]} 17. b4 {[%clk 0:02:46.2]} 17... axb4 {[%clk 0:02:15.8]} 18.
axb4 {[%clk 0:02:47.1]} 18... Nb7 {[%clk 0:01:54.8]} 19. Ng3 {[%clk 0:02:35.4]}
19... g6 {[%clk 0:01:54.3]} 20. Qd2 {[%clk 0:02:35.4]} 20... Ne8 {[%clk
0:01:44.3]} 21. Rxa8 {[%clk 0:02:29.5]} 1-0

[Event "*** Titled Tuesday Blitz"]
[Site "Chess.com"]
[Date "2021.03.02"]
[Round "11"]
[White "Julianos82"]
[Black "lagedema"]
[Result "1-0"]
[WhiteElo "2374"]
[BlackElo "2492"]
[TimeControl "180+1"]
[EndTime "12:04:54 PST"]
[Termination "Julianos82 won by resignation"]

1. d4 {[%clk 0:03:00.9]} 1... c6 {[%clk 0:03:00.9]} 2. Nf3 {[%clk 0:02:58.6]}
2... d5 {[%clk 0:03:01.8]} 3. Bg5 {[%clk 0:02:57.4]} 3... Qb6 {[%clk 0:02:59.2]}
4. Nbd2 {[%clk 0:02:56]} 4... Bg4 {[%clk 0:02:58.9]} 5. e3 {[%clk 0:02:52.8]}
5... Nd7 {[%clk 0:02:55.8]} 6. Bd3 {[%clk 0:02:51]} 6... e5 {[%clk 0:02:52]} 7.
dxe5 {[%clk 0:02:44.3]} 7... Nxe5 {[%clk 0:02:52.9]} 8. Be2 {[%clk 0:02:42.4]}
8... Nxf3+ {[%clk 0:02:41.6]} 9. Nxf3 {[%clk 0:02:40.5]} 9... Qxb2 {[%clk
0:02:41.2]} 10. O-O {[%clk 0:02:34.5]} 10... Qb6 {[%clk 0:02:36.9]} 11. c4
{[%clk 0:02:28.9]} 11... dxc4 {[%clk 0:02:33.3]} 12. Rb1 {[%clk 0:02:23.6]}
12... Qc7 {[%clk 0:02:28.1]} 13. Qd4 {[%clk 0:02:09.9]} 13... Bxf3 {[%clk
0:02:24.1]} 14. Bxf3 {[%clk 0:02:10.8]} 14... Ne7 {[%clk 0:02:20.7]} 15. Bf4
{[%clk 0:01:49]} 15... Qd7 {[%clk 0:02:18.9]} 16. Qxc4 {[%clk 0:01:41.6]} 16...
Ng6 {[%clk 0:02:17.4]} 1-0

[Event "*** Titled Tuesday Blitz"]
[Site "Chess.com"]
[Date "2021.03.02"]
[Round "11"]
[White "CSB7"]
[Black "NiranjanNavalgund"]
[Result "1-0"]
[WhiteElo "2586"]
[BlackElo "2442"]
[TimeControl "180+1"]
[EndTime "12:05:41 PST"]
[Termination "CSB7 won by resignation"]

1. Nf3 {[%clk 0:03:00.2]} 1... Nf6 {[%clk 0:02:59]} 2. d4 {[%clk 0:02:58.7]}
2... e6 {[%clk 0:02:58.7]} 3. c4 {[%clk 0:02:56.5]} 3... Bb4+ {[%clk 0:02:58.3]}
4. Bd2 {[%clk 0:02:55.8]} 4... c5 {[%clk 0:02:56.7]} 5. Bxb4 {[%clk 0:02:53.4]}
5... cxb4 {[%clk 0:02:57.6]} 6. g3 {[%clk 0:02:53.9]} 6... O-O {[%clk
0:02:57.4]} 7. Bg2 {[%clk 0:02:54.1]} 7... b6 {[%clk 0:02:57.4]} 8. Ne5 {[%clk
0:02:49.2]} 8... d5 {[%clk 0:02:55.2]} 9. a3 {[%clk 0:02:43.9]} 9... Qe7 {[%clk
0:02:48.9]} 10. O-O {[%clk 0:02:42.8]} 10... Bb7 {[%clk 0:02:48.4]} 11. axb4
{[%clk 0:02:10.2]} 11... dxc4 {[%clk 0:02:36.4]} 12. Bxb7 {[%clk 0:02:06.1]}
12... Qxb7 {[%clk 0:02:37.3]} 13. Nxc4 {[%clk 0:02:03.1]} 13... Rd8 {[%clk
0:02:34.7]} 14. e3 {[%clk 0:01:58.7]} 14... Nc6 {[%clk 0:02:29.8]} 15. b5 {[%clk
0:01:56.3]} 15... Nb4 {[%clk 0:02:29.9]} 16. Nc3 {[%clk 0:01:52]} 16... Rac8
{[%clk 0:02:30]} 17. Ne5 {[%clk 0:01:45]} 17... h5 {[%clk 0:02:23.8]} 18. Qa4
{[%clk 0:01:34.9]} 18... Nfd5 {[%clk 0:02:11.5]} 19. Nxd5 {[%clk 0:01:25.2]}
19... Nxd5 {[%clk 0:02:12.4]} 20. Qxa7 {[%clk 0:01:24.4]} 20... Qxa7 {[%clk
0:02:12.1]} 21. Rxa7 {[%clk 0:01:24.2]} 21... f6 {[%clk 0:02:11.7]} 22. Nc6
{[%clk 0:01:21.2]} 22... Rf8 {[%clk 0:02:10.8]} 23. e4 {[%clk 0:01:15.8]} 23...
Nc7 {[%clk 0:02:09.8]} 24. Ne7+ {[%clk 0:01:15.1]} 1-0

[Event "*** Titled Tuesday Blitz"]
[Site "Chess.com"]
[Date "2021.03.02"]
[Round "11"]
[White "ApoIogiA"]
[Black "VladimirBugayev"]
[Result "0-1"]
[WhiteElo "2188"]
[BlackElo "2305"]
[TimeControl "180+1"]
[EndTime "12:05:46 PST"]
[Termination "VladimirBugayev won by resignation"]

1. d4 {[%clk 0:03:00.9]} 1... Nf6 {[%clk 0:02:59.2]} 2. c4 {[%clk 0:03:01.3]}
2... c5 {[%clk 0:02:59.2]} 3. d5 {[%clk 0:03:01.2]} 3... b5 {[%clk 0:02:59.9]}
4. cxb5 {[%clk 0:03:02.1]} 4... a6 {[%clk 0:03:00.4]} 5. bxa6 {[%clk 0:03:03]}
5... Bxa6 {[%clk 0:03:00.6]} 6. Nc3 {[%clk 0:03:03.9]} 6... d6 {[%clk
0:03:00.1]} 7. e4 {[%clk 0:03:04.8]} 7... Bxf1 {[%clk 0:03:00.2]} 8. Kxf1 {[%clk
0:03:05.7]} 8... g6 {[%clk 0:03:00.4]} 9. Nf3 {[%clk 0:03:06.6]} 9... Bg7 {[%clk
0:03:00.9]} 10. g3 {[%clk 0:03:07.5]} 10... O-O {[%clk 0:03:01.2]} 11. Kg2
{[%clk 0:03:08.4]} 11... Qb6 {[%clk 0:03:01]} 12. Qe2 {[%clk 0:03:07.3]} 12...
Qa6 {[%clk 0:02:46.4]} 13. Qxa6 {[%clk 0:02:49.5]} 13... Nxa6 {[%clk 0:02:46]}
14. Nd2 {[%clk 0:02:49.3]} 14... Rfb8 {[%clk 0:02:38.2]} 15. a4 {[%clk
0:02:48.1]} 15... Nb4 {[%clk 0:02:32]} 16. Nc4 {[%clk 0:02:34.7]} 16... Nd3
{[%clk 0:02:25.1]} 17. Rb1 {[%clk 0:02:12.3]} 17... Ng4 {[%clk 0:02:18]} 18. Bg5
{[%clk 0:01:53.5]} 18... Ngxf2 {[%clk 0:02:06.6]} 19. Bxe7 {[%clk 0:01:37.7]}
19... Nxh1 {[%clk 0:02:05.1]} 20. Rxh1 {[%clk 0:01:27.2]} 20... Nxb2 {[%clk
0:01:59.9]} 0-1

[Event "*** Titled Tuesday Blitz"]
[Site "Chess.com"]
[Date "2021.03.02"]
[Round "11"]
[White "seorobert1971"]
[Black "PrinceMurad09"]
[Result "0-1"]
[WhiteElo "2658"]
[BlackElo "2573"]
[TimeControl "180+1"]
[EndTime "12:06:04 PST"]
[Termination "PrinceMurad09 won by resignation"]

1. e4 {[%clk 0:03:00.9]} 1... c5 {[%clk 0:02:59]} 2. Nf3 {[%clk 0:03:01.1]} 2...
d6 {[%clk 0:02:57.5]} 3. Nc3 {[%clk 0:03:01.3]} 3... Nf6 {[%clk 0:02:57.2]} 4.
d4 {[%clk 0:03:01.3]} 4... cxd4 {[%clk 0:02:57.7]} 5. Nxd4 {[%clk 0:03:02.2]}
5... g6 {[%clk 0:02:58.1]} 6. Be3 {[%clk 0:03:01.7]} 6... Bg7 {[%clk 0:02:58.6]}
7. f3 {[%clk 0:02:58.8]} 7... Nc6 {[%clk 0:02:59]} 8. Qd2 {[%clk 0:02:58.6]}
8... O-O {[%clk 0:02:59.3]} 9. Bc4 {[%clk 0:02:58.5]} 9... Bd7 {[%clk
0:02:59.4]} 10. O-O-O {[%clk 0:02:58.4]} 10... Rc8 {[%clk 0:02:58.6]} 11. Bb3
{[%clk 0:02:58]} 11... Nxd4 {[%clk 0:02:58.1]} 12. Bxd4 {[%clk 0:02:57.9]} 12...
b5 {[%clk 0:02:57.8]} 13. h4 {[%clk 0:02:55.7]} 13... a5 {[%clk 0:02:57.7]} 14.
a3 {[%clk 0:02:54.1]} 14... b4 {[%clk 0:02:44.1]} 15. axb4 {[%clk 0:02:53.6]}
15... axb4 {[%clk 0:02:45]} 16. Nd5 {[%clk 0:02:50.6]} 16... Nxd5 {[%clk
0:02:44.8]} 17. Bxg7 {[%clk 0:02:46.6]} 17... Kxg7 {[%clk 0:02:45.7]} 18. exd5
{[%clk 0:02:45.1]} 18... Qa5 {[%clk 0:02:37.4]} 19. Qd4+ {[%clk 0:02:44]} 19...
Kg8 {[%clk 0:02:36]} 20. h5 {[%clk 0:02:43.8]} 20... Qc5 {[%clk 0:02:17]} 21.
hxg6 {[%clk 0:02:36.8]} 21... fxg6 {[%clk 0:02:17.2]} 22. Qxc5 {[%clk
0:02:31.3]} 22... Rxc5 {[%clk 0:02:15.1]} 23. Rde1 {[%clk 0:02:30.7]} 23... Bf5
{[%clk 0:01:49.5]} 24. Re2 {[%clk 0:02:18.6]} 24... Rfc8 {[%clk 0:01:45.7]} 25.
Rh4 {[%clk 0:02:15.9]} 25... Bxc2 {[%clk 0:01:37.8]} 26. Rxc2 {[%clk 0:02:03.9]}
26... Rxc2+ {[%clk 0:01:37.3]} 27. Bxc2 {[%clk 0:02:04.1]} 27... b3 {[%clk
0:01:37.9]} 28. Kd2 {[%clk 0:02:01]} 28... Rxc2+ {[%clk 0:01:36.1]} 29. Kd3
{[%clk 0:02:01]} 29... Rxb2 {[%clk 0:01:36.4]} 30. Kc3 {[%clk 0:01:52.5]} 30...
Rxg2 {[%clk 0:01:35.2]} 31. Kxb3 {[%clk 0:01:52.4]} 31... g5 {[%clk 0:01:33.3]}
32. Re4 {[%clk 0:01:51.3]} 32... Kf7 {[%clk 0:01:31.7]} 0-1

[Event "*** Titled Tuesday Blitz"]
[Site "Chess.com"]
[Date "2021.03.02"]
[Round "11"]
[White "Fy_Rakotomaharo"]
[Black "ruvat"]
[Result "1-0"]
[WhiteElo "2714"]
[BlackElo "2363"]
[TimeControl "180+1"]
[EndTime "12:06:10 PST"]
[Termination "Fy_Rakotomaharo won by resignation"]

1. f4 {[%clk 0:03:00.9]} 1... d5 {[%clk 0:02:56.5]} 2. Nf3 {[%clk 0:03:01.2]}
2... g6 {[%clk 0:02:56.6]} 3. g3 {[%clk 0:03:01.6]} 3... Bg7 {[%clk 0:02:56.7]}
4. Bg2 {[%clk 0:03:02.3]} 4... Nf6 {[%clk 0:02:56.9]} 5. O-O {[%clk 0:03:03.2]}
5... O-O {[%clk 0:02:56.9]} 6. d3 {[%clk 0:03:04.1]} 6... b6 {[%clk 0:02:56.5]}
7. c3 {[%clk 0:03:05]} 7... Bb7 {[%clk 0:02:56.7]} 8. Na3 {[%clk 0:03:01.9]}
8... Nbd7 {[%clk 0:02:55.8]} 9. Nc2 {[%clk 0:03:01.9]} 9... c5 {[%clk
0:02:55.3]} 10. h3 {[%clk 0:02:55.9]} 10... Qc7 {[%clk 0:02:55.1]} 11. Qe1
{[%clk 0:02:51.7]} 11... e5 {[%clk 0:02:54.8]} 12. fxe5 {[%clk 0:02:47.7]} 12...
Nxe5 {[%clk 0:02:55.1]} 13. Nxe5 {[%clk 0:02:46.6]} 13... Qxe5 {[%clk
0:02:54.2]} 14. Bf4 {[%clk 0:02:47.3]} 14... Qe7 {[%clk 0:02:53.9]} 15. Qf2
{[%clk 0:02:47.7]} 15... Ne8 {[%clk 0:02:29.8]} 16. Rae1 {[%clk 0:02:41.4]}
16... Nd6 {[%clk 0:02:13.1]} 17. Ne3 {[%clk 0:02:34.8]} 17... d4 {[%clk
0:02:00.4]} 18. Bxd6 {[%clk 0:02:22]} 18... Qxd6 {[%clk 0:01:28.3]} 19. Bxb7
{[%clk 0:02:05]} 19... dxe3 {[%clk 0:01:26.7]} 20. Qxe3 {[%clk 0:02:05.9]} 20...
Rae8 {[%clk 0:01:24]} 21. Qf2 {[%clk 0:02:05.2]} 21... Re7 {[%clk 0:01:22.1]}
22. Bf3 {[%clk 0:02:03.1]} 22... Rfe8 {[%clk 0:01:18.7]} 23. Kg2 {[%clk
0:01:57.2]} 23... Re3 {[%clk 0:01:18]} 24. Be4 {[%clk 0:01:57]} 24... Bh6 {[%clk
0:01:05.2]} 25. Qxf7+ {[%clk 0:01:55.7]} 1-0

[Event "*** Titled Tuesday Blitz"]
[Site "Chess.com"]
[Date "2021.03.02"]
[Round "11"]
[White "Brave_spirit12"]
[Black "francyIM"]
[Result "1-0"]
[WhiteElo "2578"]
[BlackElo "2710"]
[TimeControl "180+1"]
[EndTime "12:06:23 PST"]
[Termination "Brave_spirit12 won by resignation"]

1. e4 {[%clk 0:02:57.2]} 1... c5 {[%clk 0:02:57.5]} 2. c3 {[%clk 0:02:57.4]}
2... Nf6 {[%clk 0:02:53.7]} 3. e5 {[%clk 0:02:57.5]} 3... Nd5 {[%clk 0:02:51.6]}
4. d4 {[%clk 0:02:58.4]} 4... cxd4 {[%clk 0:02:50.7]} 5. cxd4 {[%clk 0:02:59.3]}
5... d6 {[%clk 0:02:51.3]} 6. Nf3 {[%clk 0:02:59.5]} 6... Nc6 {[%clk 0:02:49]}
7. Nc3 {[%clk 0:02:59.5]} 7... e6 {[%clk 0:02:36.7]} 8. Bd3 {[%clk 0:02:58.3]}
8... Be7 {[%clk 0:02:20]} 9. O-O {[%clk 0:02:57.3]} 9... O-O {[%clk 0:02:11.6]}
10. Qe2 {[%clk 0:02:57.3]} 10... g6 {[%clk 0:02:10]} 11. Bh6 {[%clk 0:02:56.2]}
11... Re8 {[%clk 0:02:09.6]} 12. Rfd1 {[%clk 0:02:56.3]} 12... b6 {[%clk
0:02:03.1]} 13. Rac1 {[%clk 0:02:49.3]} 13... Bb7 {[%clk 0:01:41.9]} 14. Nxd5
{[%clk 0:02:48]} 14... exd5 {[%clk 0:01:26.7]} 15. e6 {[%clk 0:02:48.9]} 15...
Bf6 {[%clk 0:01:18.7]} 16. exf7+ {[%clk 0:02:39.3]} 16... Kxf7 {[%clk
0:01:19.6]} 17. Qd2 {[%clk 0:02:22.2]} 17... Qd7 {[%clk 0:01:01.1]} 18. Qf4
{[%clk 0:02:10.9]} 18... Qd8 {[%clk 0:00:54.2]} 19. Re1 {[%clk 0:02:03.7]} 19...
Rxe1+ {[%clk 0:00:51.8]} 20. Rxe1 {[%clk 0:02:04.6]} 20... Bc8 {[%clk
0:00:46.2]} 21. Ng5+ {[%clk 0:01:54.8]} 21... Kg8 {[%clk 0:00:45.7]} 22. Qxf6
{[%clk 0:01:55.1]} 1-0